Cogmind - Beta 11 X4 @@@ ROGUE MODE // 2021.05.02 @ 03:51:19 Player: Couldnt Find A0 Result: Establishing 0b11! Performance ------------- Evolutions (9) 4500 Regions Visited (27) 5400 Robots Destroyed (229) 1145 Value Destroyed (10931) 10931 Prototype IDs (92) 1840 Alien Tech Used (0) 0 Bonus (29754) 29754 TOTAL SCORE: 53570 Bonus ------- High Alert Combat Kills 713 Follower Combat Kills 2314 Network Hubs Disabled 400 Aligned with FarCom 300 Met Data Miner 300 Met Warlord at Base 500 MAIN.C Attacked Warlord 500 Warlord Defense Kill 228 Built Enhanced Grunts 300 Met R17 at Research 2000 Met Warlord at Research 2000 Destroyed MAIN.C Guards 500 Met MAIN.C 5000 Destroyed MAIN.C Shell 5000 Destroyed MAIN.C 10000 Met Warlord at Command 2000 Win 3000 Friendly Fire -5301 Cogmind --------- Core Integrity 501/1600 Matter 226/300 Energy 228/240 System Corruption 18% Temperature Cool (8) Movement Walking (200) Ox1 Location 0b11 Command Parts ------- > --- POWER (2) -------- Zero-point Reactor > --- PROPULSION (6) --- Experimental Biometal Heavy Treads High-density Centrium Leg High-density Centrium Leg High-density Centrium Leg High-density Centrium Leg > --- UTILITY (14) ----- Huge Storage Unit Improved Medium Armor Plating Layered Medium Armor Plating Heavy Regenerative Plating > --- WEAPON (3) ------- Heavy Hardcell Cannon > --- INVENTORY (25) --- Vortex Chain Reactor Centrium Leg Centrium Leg Centrium Leg Centrium Leg Experimental Matter Compressor (0) Femtoactuators System Restoration Module Wardrone Bay (1/1) Helical Railgun Heavy Hardcell Cannon Graviton Cannon Graviton Cannon Z-bomb Delivery System Peak State ------------ > --- POWER ------------ Particle Reactor Zero-point Reactor > --- PROPULSION ------- Experimental Biometal Heavy Treads High-density Centrium Leg High-density Centrium Leg High-density Centrium Leg High-density Centrium Leg > --- UTILITY ---------- Cargo Storage Unit Advanced Kinecellerator Experimental Force Field Wardrone Bay > --- WEAPON ----------- (None) > --- INVENTORY -------- Vortex Chain Reactor Centrium Leg Centrium Leg Centrium Leg Centrium Leg Centrium Leg Centrium Leg Huge Storage Unit Experimental Matter Compressor Femtoactuators Femtoactuators Heavy Regenerative Plating Improved Remote Shield System Restoration Module HERF Cannon Enhanced Nova Cannon Enhanced Nova Cannon Helical Railgun Helical Railgun Heavy Hardcell Cannon Heavy Hardcell Cannon Graviton Cannon Graviton Cannon Graviton Cannon Z-bomb Delivery System [Rating: 254] Favorites ----------- Power Micro Fission Core Engine Light Angular Momentum Engine Power Core Micro Fission Core Reactor Particle Reactor Propulsion High-density Centrium Leg Treads Improved Treads Leg High-density Centrium Leg Wheel Armored Huge Wheel Hover Unit Improved Antigrav System Utility Huge Storage Unit Device Coolant Injector Storage Huge Storage Unit Processor Experimental Targeting Computer Hackware Improved System Shield Protection Layered Medium Armor Plating Weapon KE Penetrator Energy Gun Vortex Rail Energy Cannon HERF Cannon Ballistic Gun KE Penetrator Ballistic Cannon Flak Cannon Launcher Heavy Shock Bomb Launcher Special Weapon Mining Laser Slashing Weapon Axe Piercing Weapon Plasma Lance Build | -11 -10 -10 -10 -9 -8 -7 -7 -7 -6 -6 -6 -6 -5 -5 -5 -5 -5 -5 -4 -4 -4 -4 -3 -3 -2 -1 -1 ------- Run | Scr Mat Min Exi Min Mat Fac Low Low Fac Low Low Dat Pro Fac Ext Cet Arc Hub Fac Upp Upp War Pro Res Res Acc Com Slots Evolved 18 | . . . . . 4 2 . . 2 . . . . 2 . . . . 2 . . . . 2 2 2 . Power 1 | . . . . . . . . . . . . . . 1 . . . . . . . . . . . . . Propulsion 4 | . . . . . 1 . . . 1 . . . . . . . . . 2 . . . . . . . . Utility 12 | . . . . . 2 2 . . 1 . . . . 1 . . . . . . . . . 2 2 2 . Weapon 1 | . . . . . 1 . . . . . . . . . . . . . . . . . . . . . . Parts Attached 394 | 9 3 14 . 7 11 17 10 . 16 3 3 25 8 27 26 4 5 7 27 8 4 14 2 15 23 18 88 Power 35 | 1 . . . . 2 . 1 . 1 . . 2 . 3 6 . . 1 2 . . 2 . . 1 1 12 Engine 9 | 1 . . . . 2 . 1 . . . . . . 2 3 . . . . . . . . . . . . Core 10 | . . . . . . . . . 1 . . . . 1 3 . . 1 2 . . . . . . . 2 Reactor 16 | . . . . . . . . . . . . 2 . . . . . . . . . 2 . . 1 1 10 Propulsion 81 | 4 2 7 . . 3 3 3 . 2 . . 6 2 4 8 1 1 2 6 2 1 5 . 1 5 1 12 Treads 31 | 2 . 3 . . 3 . 2 . . . . 3 . 1 5 1 1 2 6 . . . . . . . 2 Leg 42 | 2 2 4 . . . . 1 . . . . 3 2 3 3 . . . . . 1 5 . 1 5 1 9 Wheel 7 | . . . . . . 3 . . 2 . . . . . . . . . . 2 . . . . . . . Hover 1 | . . . . . . . . . . . . . . . . . . . . . . . . . . . 1 Flight . | . . . . . . . . . . . . . . . . . . . . . . . . . . . . Utility 171 | 2 1 1 . 1 4 6 3 . 8 3 1 11 4 15 7 2 4 2 13 6 . 4 . 9 10 14 40 Device 87 | 1 . . . . 1 3 3 . 2 3 1 8 4 10 2 . . . 8 4 . 1 . 3 6 8 19 Storage 19 | . 1 1 . . 1 1 . . . . . 1 . 2 . . . 1 2 . . 1 . 1 2 1 4 Processor 16 | 1 . . . . 1 1 . . . . . 1 . 1 . . . . 2 . . 2 . 1 2 . 4 Hackware 21 | . . . . . . 1 . . 5 . . . . 1 2 . 4 1 . . . . . 2 . 2 3 Protection 28 | . . . . 1 1 . . . 1 . . 1 . 1 3 2 . . 1 2 . . . 2 . 3 10 Artifact . | . . . . . . . . . . . . . . . . . . . . . . . . . . . . Weapon 107 | 2 . 6 . 6 2 8 3 . 5 . 2 6 2 5 5 1 . 2 6 . 3 3 2 5 7 2 24 Energy Gun 12 | . . . . . . . . . . . . . . . 1 . . . . . . 3 1 1 2 2 2 Energy Cannon 11 | . . . . . . . . . . . . . 1 . . . . 1 1 . . . 1 2 2 . 3 Ballistic Gun 43 | 2 . 3 . 5 2 4 . . 1 . 2 3 1 2 4 1 . 1 4 . 3 . . . 1 . 4 Ballistic Cannon 18 | . . . . . . . 3 . 2 . . . . 2 . . . . 1 . . . . 1 . . 9 Launcher 7 | . . . . 1 . 3 . . . . . . . . . . . . . . . . . . 2 . 1 Special Weapon 3 | . . 3 . . . . . . . . . . . . . . . . . . . . . . . . . Impact Weapon . | . . . . . . . . . . . . . . . . . . . . . . . . . . . . Slashing Weapon 3 | . . . . . . 1 . . 2 . . . . . . . . . . . . . . . . . . Piercing Weapon 10 | . . . . . . . . . . . . 3 . 1 . . . . . . . . . 1 . . 5 Special Melee Weapon . | . . . . . . . . . . . . . . . . . . . . . . . . . . . . Unidentified Prototypes 35 | . . . . . . . . . 1 . . 3 . 2 . 3 . . 2 . . 7 . 2 2 . 13 Corrupted Parts 13 | . . . . . . . . . . . . . . . 1 . . 4 . . 1 1 . . 3 . 3 System Corruption 62 | . . . . . . . . . . . . . . . 4 . . 23 . . 4 7 . . 14 . 10 Parts Lost 79 | . . . . . . 1 4 . 1 1 2 8 4 7 8 1 . 2 2 2 5 . . 1 5 1 24 Power 10 | . . . . . . . 1 . . . . 1 . 2 2 . . . . . . . . . . . 4 Propulsion 15 | . . . . . . . 1 . . . . 2 . 1 2 . . . 1 1 2 . . 1 1 . 3 Utility 36 | . . . . . . . 2 . . 1 . 3 2 2 4 1 . 2 1 1 . . . . 2 1 14 Weapon 18 | . . . . . . 1 . . 1 . 2 2 2 2 . . . . . . 3 . . . 2 . 3 Highest Loss Streak 9 | . . . . . . 1 4 . 1 1 2 5 3 4 5 1 . 2 1 1 3 . . 1 2 1 9 Average Slot Usage (%) 79 | . 100 99 100 100 97 84 87 100 85 85 85 88 99 96 93 91 91 86 89 89 87 75 88 86 90 83 58 Engine 1 | . 14 14 14 14 9 7 6 7 2 . . . . 3 3 . . . . . . . . . . . . Core 3 | . . . . . . . . . 3 6 6 3 . 4 5 11 11 11 10 10 10 7 . . . . 1 Reactor 2 | . . . . . . . . . . . . 2 6 . . . . . . . . 1 5 4 3 3 6 Treads 5 | . . 2 . . 21 11 13 15 . . . 4 1 . 7 17 17 17 23 19 6 4 . . . . 1 Leg 14 | . 28 24 28 28 5 . 5 7 . . . 7 24 21 12 . . . . . 2 8 31 27 25 24 21 Wheel 1 | . . . . . . 5 1 . 13 13 13 6 . . . . . . . 2 10 9 . . . . . Device 11 | . 14 14 14 6 2 12 8 15 10 12 23 26 30 27 21 17 6 . 10 9 10 6 10 5 6 15 8 Storage 7 | . 7 14 14 14 16 7 7 7 6 6 6 6 6 8 9 5 5 6 5 10 10 10 10 4 9 5 5 Processor 5 | . 7 . . . . 12 15 15 9 . . 5 1 . . . . . 4 10 10 11 15 18 20 13 2 Hackware 5 | . . . . . . 5 7 7 18 18 9 . . 3 9 2 16 19 13 1 . . . 7 7 8 2 Protection 5 | . . . . 7 14 1 . . 1 6 6 3 6 3 2 17 13 11 4 8 10 8 5 4 3 6 5 Ballistic Gun 7 | . 28 22 28 27 27 8 . . 2 6 15 9 16 5 12 16 17 15 14 10 12 . . . . . 1 Ballistic Cannon 3 | . . . . . . . 17 23 14 13 3 . . 7 3 . . . . 5 2 . . . . . 2 Naked Turns . | . . . . . . . . . . . . . . . . . . . . . . . . . . . . Heaviest Build 370 | 8 13 18 18 20 29 102 112 112 116 111 111 130 137 134 85 86 86 161 125 129 127 166 156 160 163 289 370 Greatest Support 212 | 40 26 26 26 26 60 66 40 40 56 56 56 84 99 99 116 126 131 131 212 212 32 160 160 160 168 171 189 Greatest Overweight (x) 58 | . . . . . . 3 3 2 2 1 1 3 1 1 1 . . 1 . 4 3 5 . 1 . 1 58 Average Overweight (x) 1 | . . . . . . 1 2 2 1 1 1 1 1 . . . . . . . 3 3 . . . . 2 Largest Inventory Capacity 30 | 5 8 10 10 10 10 25 25 25 25 25 25 25 25 25 15 15 15 25 25 25 25 25 25 25 25 30 30 Average Capacity 23 | 5 6 8 10 10 10 17 25 25 25 25 25 25 25 17 15 15 15 17 25 25 25 25 25 25 25 26 29 Most Carried 30 | 5 8 8 10 10 10 25 25 25 25 25 23 21 24 25 15 15 15 20 25 25 22 25 25 25 25 29 30 Average Carried 21 | . 5 7 8 10 9 13 24 24 23 21 21 17 18 16 14 14 14 15 22 23 19 23 24 24 24 25 25 Final Capacity 30 | 5 8 10 10 10 10 25 25 25 25 25 25 25 25 15 15 15 15 25 25 25 25 25 25 25 25 30 25 Final Carried 29 | 5 8 8 10 10 10 25 24 25 25 23 21 21 24 15 15 14 15 19 25 22 19 25 24 25 22 29 25 Class Distribution -------------------- 26% | Scavenger-Mutant 17% | Hauler-Mutant 12% | Scavenger-Tank 9% | Scavenger-Gunner 9% | Mutant 6% | Scavenger-Skirmisher 3% | Hacker-Mutant 3% | Skirmisher Dominant Class ---------------- Mutant | -10/Materials Mutant | -10/Mines Mutant | -10/Exiles Mutant | -9/Mines Scavenger-Tank | -8/Materials Assassin | -7/Factory Scavenger-Gunner | -7/Lower Caves Scavenger-Gunner | -7/Lower Caves Skirmisher | -6/Factory Hacker-Tank | -6/Lower Caves Tank | -6/Lower Caves Derelict-Mutant | -6/Data Miner Scavenger-Tank | -5/Proximity Caves Scavenger-Tank | -5/Factory Scavenger-Skirmisher | -5/Extension Scavenger-Tank | -5/Cetus Scavenger-Tank | -5/Archives Scavenger-Tank | -5/Hub_04(d) Scavenger-Gunner | -4/Factory Scavenger-Gunner | -4/Upper Caves Scavenger-Gunner | -4/Upper Caves Scavenger-Mutant | -4/Warlord Scavenger-Mutant | -3/Proximity Caves Scavenger-Mutant | -3/Research Scavenger-Mutant | -2/Research Scavenger-Mutant | -1/Access Hauler-Mutant | -1/Command Resources | -11 -10 -10 -10 -9 -8 -7 -7 -7 -6 -6 -6 -6 -5 -5 -5 -5 -5 -5 -4 -4 -4 -4 -3 -3 -2 -1 -1 ----------- Run | Scr Mat Min Exi Min Mat Fac Low Low Fac Low Low Dat Pro Fac Ext Cet Arc Hub Fac Upp Upp War Pro Res Res Acc Com Matter Collected 11739 | 338 . 117 . 208 143 173 455 12 465 319 164 286 612 769 818 411 285 141 1117 1060 309 288 33 150 481 164 2421 Remotely 1707 | . . . . . . . . . . . . . . . . . . . 716 632 . . . 60 . . 299 Salvage Created 11559 | 226 . 92 . 150 196 449 84 . 500 290 235 371 794 983 789 629 107 209 1203 795 121 155 544 961 724 56 896 Parts 455 | 21 . 8 . 15 12 22 5 . 12 4 9 18 31 25 31 18 9 7 68 24 7 7 17 32 18 6 29 Haulers Intercepted 12 | . . . . . 1 . . . 1 . . . . 3 . . . 1 2 . . . . 2 2 . . Recyclers Shooed 10 | . . . . . . . . . . . . . . 2 3 . . . 3 . . . . . . 2 . Parts Field Recycled . | . . . . . . . . . . . . . . . . . . . . . . . . . . . . Retrieved Matter . | . . . . . . . . . . . . . . . . . . . . . . . . . . . . Parts Self-Destructed 178 | . . . . . . . 10 . . 3 7 . 31 . . . . . . 24 7 86 10 . . . . Prevented 24 | . . . . . . . . . . . . . 3 . . . . . . . 8 7 6 . . . . Kills | -11 -10 -10 -10 -9 -8 -7 -7 -7 -6 -6 -6 -6 -5 -5 -5 -5 -5 -5 -4 -4 -4 -4 -3 -3 -2 -1 -1 ------- Run | Scr Mat Min Exi Min Mat Fac Low Low Fac Low Low Dat Pro Fac Ext Cet Arc Hub Fac Upp Upp War Pro Res Res Acc Com Combat Hostiles Destroyed 168 | . . 3 . 6 3 14 6 . 7 7 5 4 17 9 12 7 . 1 14 14 4 2 8 8 10 2 5 Melee 15 | . . . . . . 3 . . . . . 2 . 2 . . . . . . . . 1 3 . 1 3 Guns 81 | . . 3 . 3 3 2 . . 1 2 4 2 14 4 8 7 . . 14 7 2 . 2 1 . 1 1 Cannons 45 | . . . . . . . 6 . 6 5 1 . 3 3 4 . . . . 7 2 . 2 3 2 . 1 AOE 23 | . . . . 3 . 9 . . . . . . . . . . . . . . . 2 2 . 7 . . Classes Destroyed 21 | 3 . 2 . . 2 2 . . 2 1 . . 1 . 2 . . . 1 . 1 1 . . 1 1 1 Worker 11 | 2 . . . . . 1 . . . . . . . 1 . . . 1 1 . . . . 1 . 2 2 Builder 3 | . . . . . . . . . . . . . . . . . . . 3 . . . . . . . . Tunneler 7 | 5 . . . . . 1 . . . . . . . . 1 . . . . . . . . . . . . Hauler 12 | . . . . . 1 . . . 1 . . . . 3 . . . 1 2 . . . . 2 2 . . Recycler 8 | 1 . . . . . 1 . . 2 . . . . 3 . . . . . . . . . . . . 1 Minesweeper 1 | . . . . . . . . . . . . . 1 . . . . . . . . . . . . . . Mechanic 2 | . . . . . . . . . . . . . . . . . . . . . . 1 . . 1 . . Operator 5 | . . . . . . . . . 1 . . . . . . . 3 . . . . . . . . . 1 Drone 1 | . . . . . . . . . . . . . . . . . . . . . . . . . . 1 . Watcher 4 | . . . . . . . . . . . . . . . 1 1 . . 1 . . . . . 1 . . Swarmer 36 | . . 1 . 5 . 7 6 . . . . . 8 2 . . . . . . 4 . . . 3 . . Grunt 60 | . . 2 . 2 2 3 . . 4 2 4 . 7 4 3 2 . . 1 10 . 1 5 4 4 . . Brawler 4 | . . . . . . . . . . 2 . . . . . 1 . . . . . . 1 . . . . Duelist 4 | . . . . . . 1 . . . 2 . . . . . . . . . 1 . . . . . . . Protector 2 | . . . . . . . . . . . . . . . 1 . . . . . . 1 . . . . . Sentry 27 | . . . . . 1 1 . . 2 1 . . . 3 8 . . 1 3 . . . . 4 1 . 2 Hunter 9 | . . . . . . 2 . . . . . . . . . . . . 3 2 . . 2 . . . . Programmer 16 | . . . . . . . . . 1 . 1 . 2 . . . . . 7 1 . . . . . 2 2 Cetus Guard 4 | . . . . . . . . . . . . . . . . 4 . . . . . . . . . . . M Guard 1 | . . . . . . . . . . . . . . . . . . . . . . . . . . . 1 Enhanced Grunt 4 | . . . . . . . . . . . . 4 . . . . . . . . . . . . . . . Executioner 2 | . . . . . . . . . . . . . . . . . . . . . . . . . 2 . . Decomposer 1 | . . . . . . . . . . . . . . . . . . . . . . . 1 . . . . Samaritan 1 | . . . . . . . . . . . . . . . . . . . . . 1 . . . . . . Thug 3 | . . . . . . . . . . . . . . . 2 1 . . . . . . . . . . . Martyr 2 | . . . . . . . . . . . . . . . . . . . . . . . . . . . 2 Wizard 1 | . . . . . . . . . . . . . . . . . . . . . . . . . . . 1 Best Kill Streak 9 | 5 . 2 . 4 2 4 3 . 5 6 4 2 5 4 2 4 1 3 9 5 5 2 6 6 6 2 4 Combat Bots Only 6 | . . 2 . 4 1 4 3 . 3 6 4 2 4 3 2 4 . 1 4 5 4 2 6 5 5 1 4 Max Kills in Single Turn 3 | 1 . 1 . 3 1 3 2 . 1 1 1 1 2 1 2 1 1 2 1 1 1 2 2 1 2 1 1 Gunslinging . | . . . . . . . . . . . . . . . . . . . . . . . . . . . . Exploded 3 | . . . . 3 . 3 . . . . . . . . . . . . . . . 2 2 . 1 . . Melee 1 | . . . . . . 1 . . . . . 1 . 1 . . . . . . . . 1 1 . 1 1 Uniques/NPCs Destroyed 3 | . . . . . . . . . . . . . . . . 1 . . . . . . . . . . 2 A7 (-5/Cetus) MAIN.C Shell (-1/Command) MAIN.C (-1/Command) Combat | -11 -10 -10 -10 -9 -8 -7 -7 -7 -6 -6 -6 -6 -5 -5 -5 -5 -5 -5 -4 -4 -4 -4 -3 -3 -2 -1 -1 -------- Run | Scr Mat Min Exi Min Mat Fac Low Low Fac Low Low Dat Pro Fac Ext Cet Arc Hub Fac Upp Upp War Pro Res Res Acc Com Damage Taken 26023 | . . 80 . 339 155 786 439 . 671 245 284 1371 849 1266 1132 874 . 285 2230 1705 443 244 360 748 1285 1080 9152 Core 2720 | . . . . 75 . 194 75 . 165 36 25 229 47 83 75 66 . . 167 139 57 5 30 57 96 . 1099 Absorbed by Shields 3483 | . . . . . . 12 . . . 31 87 228 314 359 141 36 . . . . . 93 109 228 408 13 1424 Reduced by Siege Mode 126 | . . . . . . . . . . . . . . . . 23 . . 85 18 . . . . . . . Core Remaining (%) 73 | 100 . . . 70 100 . . 61 . . . . 40 . . . . 77 . . . . 65 95 93 . 31 Volleys Fired 800 | 24 . 37 . 31 18 27 13 . 22 15 10 8 32 44 44 41 7 8 63 34 14 5 17 34 40 10 202 Largest 3 | 2 . 2 . 2 3 3 3 . 3 3 3 3 3 3 3 3 3 3 3 3 3 3 2 1 1 1 3 Hottest 195 | 40 . 100 . 40 65 60 132 . 132 116 116 79 148 148 113 101 101 101 125 121 121 135 133 88 88 45 195 Shots Fired 1611 | 48 . 45 . 61 54 53 29 . 60 44 27 22 91 116 129 122 22 16 186 101 31 7 18 34 39 10 246 Gun 1139 | 48 . 16 . 60 54 39 . . 6 14 16 22 81 42 83 122 22 13 184 67 17 7 5 18 21 10 172 Cannon 420 | . . . . . . . 29 . 54 30 11 . 10 74 46 . . 3 2 34 14 . 13 16 10 . 74 Launcher 23 | . . . . 1 . 14 . . . . . . . . . . . . . . . . . . 8 . . Special 29 | . . 29 . . . . . . . . . . . . . . . . . . . . . . . . . Kinetic 1423 | 48 . 16 . 60 54 39 29 . 60 44 27 22 81 110 129 122 22 13 184 101 31 . . . . . 231 Thermal 56 | . . 29 . . . . . . . . . . 10 6 . . . 3 2 . . . . . . . 6 Explosive 20 | . . . . 1 . 14 . . . . . . . . . . . . . . . . . . 5 . . Electromagnetic 45 | . . . . . . . . . . . . . . . . . . . . . . . 13 16 13 . 3 Entropic 67 | . . . . . . . . . . . . . . . . . . . . . . 7 5 18 21 10 6 Robot Hit Streak 30 | 11 . 5 . 14 5 18 4 . 9 7 7 10 6 14 17 18 5 . 19 30 5 9 14 13 12 18 24 Robot Miss Streak 12 | 3 . 1 . 4 4 3 9 . 7 8 5 3 12 4 3 3 2 1 4 3 4 2 1 1 1 . 3 Penetration Max 2 | . . . . . . . . . . . . . . 1 1 1 . . 1 1 . 1 . . 1 2 . Secondary Targets 5 | . . . . . . . . . . . . . . . . 4 . . 1 . . . . . . . . Max Gunslinging Chain 1 | . . . . . . . . . . . . . . . . 1 . . 1 . . . . . . . . Shots Hit Robots 1052 | 32 . 10 . 35 32 50 24 . 57 42 27 42 66 61 85 88 15 . 138 79 12 5 16 36 25 6 69 Core Hits 667 | 16 . 8 . 16 12 36 18 . 67 43 34 33 69 31 40 28 7 2 47 34 4 9 16 25 29 8 35 Critical Kills 14 | . . . . . . . . . . . . . . 1 3 3 1 . 5 1 . . . . . . . Critical Parts Destroyed 31 | . . . . . . . . . . . . . 2 1 1 7 2 . 8 1 . 4 2 . 2 . 1 Critical Strikes 61 | . . . . . . 1 . . . . . 1 2 4 5 11 3 . 13 9 2 4 2 . 2 . 2 Destroy 37 | . . . . . . . . . . . . . 2 2 4 11 3 . 13 2 . . . . . . . Blast 11 | . . . . . . . . . . . . . . 1 1 . . . . 7 2 . . . . . . Sever 1 | . . . . . . 1 . . . . . . . . . . . . . . . . . . . . . Puncture 3 | . . . . . . . . . . . . 1 . 1 . . . . . . . . . . . . 1 Detonate 9 | . . . . . . . . . . . . . . . . . . . . . . 4 2 . 2 . 1 Melee Attacks 157 | . . . . . . 19 . . 8 . . 44 . 10 . . . . . . . . . 32 2 5 37 Impact . | . . . . . . . . . . . . . . . . . . . . . . . . . . . . Slashing 27 | . . . . . . 19 . . 8 . . . . . . . . . . . . . . . . . . Piercing 130 | . . . . . . . . . . . . 44 . 10 . . . . . . . . . 32 2 5 37 Sneak Attacks 13 | . . . . . . 3 . . . . . 1 . 1 . . . . . . . . . 3 1 . 4 Combat Hostiles . | . . . . . . . . . . . . . . . . . . . . . . . . . . . . Follow-up Attacks 8 | . . . . . . . . . . . . 8 . . . . . . . . . . . . . . . Damage Inflicted 37370 | 263 . 81 . 525 320 1969 241 . 1219 730 613 1247 1607 2124 2808 2415 398 354 3667 2328 368 1242 1103 1709 2893 966 6180 Guns 15529 | 257 . 81 . 272 320 252 . . 75 179 361 422 1450 576 1452 2415 398 . 3624 1313 170 300 190 132 523 577 190 Cannons 9315 | . . . . . . . 241 . 1144 551 252 . 157 1272 1313 . . . . 1015 198 . 382 454 375 . 1961 Explosions 5065 | . . . . 207 . 1172 . . . . . . . . . . . 354 . . . 911 432 . 1855 . 134 Melee 4332 | . . . . . . 545 . . . . . 825 . 268 . . . . . . . . . 1104 140 . 1450 Ramming 3129 | 6 . . . 46 . . . . . . . . . 8 43 . . . 43 . . 31 99 19 . 389 2445 Kinetic 21357 | 257 . 81 . 272 320 252 241 . 1219 730 613 422 1450 1732 2765 2415 398 . 3624 2328 368 . . . . . 1870 Thermal 2544 | . . . . . . 147 . . . . . . 157 116 . . . . . . . 911 432 . 647 . 134 Explosive 2295 | . . . . 207 . 1025 . . . . . . . . . . . . . . . . . . 1063 . . Electromagnetic 1801 | . . . . . . . . . . . . . . . . . . 354 . . . . 382 454 520 . 91 Impact . | . . . . . . . . . . . . . . . . . . . . . . . . . . . . Slashing 545 | . . . . . . 545 . . . . . . . . . . . . . . . . . . . . . Piercing 3787 | . . . . . . . . . . . . 825 . 268 . . . . . . . . . 1104 140 . 1450 Entropic 1912 | . . . . . . . . . . . . . . . . . . . . . . 300 190 132 523 577 190 Highest Corruption 39 | . . . . . . . . . . 1 2 2 7 . 5 8 8 39 4 7 11 11 7 . 14 2 18 Average Corruption 5 | . . . . . . . . . . 1 1 2 5 . 1 6 8 13 2 5 8 8 7 . 4 1 7 Corruption Purged 29 | . . . . . . . . . . . . . . . . . . . . . . . . . . . 29 Effects 233 | . . . . . . . . . . 1 4 3 18 . 5 10 7 10 11 16 25 5 8 . 8 . 102 Message Errors 67 | . . . . . . . . . . . 3 2 5 . 2 2 1 1 2 8 4 2 2 . 2 . 31 Matter Fused 47 | . . . . . . . . . . . . . 1 . . 3 3 2 3 4 5 2 2 . . . 22 Heat Flow Errors 29 | . . . . . . . . . . . . . 2 . . 2 . 1 1 . 7 1 1 . 1 . 13 Energy Discharges 22 | . . . . . . . . . . . 1 . 3 . 1 . 1 . 1 . 2 . 1 . 2 . 10 Parts Rejected 3 | . . . . . . . . . . . . . 1 . . 1 . . . . . . . . 1 . . Data Loss (minor) 36 | . . . . . . . . . . . . 1 4 . 1 1 1 . 4 2 2 . 2 . 1 . 17 Data Loss (major) 5 | . . . . . . . . . . . . . . . 1 . . . . 1 . . . . . . 3 Misfires 6 | . . . . . . . . . . . . . . . . . 1 2 . . . . . . . . 3 Alerts 1 | . . . . . . . . . . . . . . . . . . . . . . . . . . . 1 Misdirections 9 | . . . . . . . . . . . . . . . . . . 2 . . 5 . . . . . 2 Weapon Failures 8 | . . . . . . . . . . 1 . . 2 . . 1 . 2 . 1 . . . . 1 . . Overload Shots . | . . . . . . . . . . . . . . . . . . . . . . . . . . . . Overflow Damage 921 | . . . . . . 137 . . 4 . . 17 . 78 18 . . . 7 16 16 . 92 221 65 77 173 Projectiles 210 | . . . . . . . . . 4 . . . . 78 18 . . . . 16 16 . 34 . . . 44 Explosions 160 | . . . . . . 66 . . . . . . . . . . . . . . . . . . 65 . 29 Melee 551 | . . . . . . 71 . . . . . 17 . . . . . . 7 . . . 58 221 . 77 100 Knockbacks 132 | . . . . . . . 10 . 24 7 13 . . 11 4 . . . . 6 4 1 . . . 4 48 Impact 48 | . . . . . . . . . . . . . . . 1 . . . . . . 1 . . . 4 42 Kinetic 80 | . . . . . . . 10 . 23 7 11 . . 11 3 . . . . 6 3 . . . . . 6 Secondary 4 | . . . . . . . . . 1 . 2 . . . . . . . . . 1 . . . . . . Self-Inflicted Damage 497 | . . . . . . 46 . . . . . . . . . . . 105 . . . . 59 . 102 . 185 Shots 8 | . . . . . . 2 . . . . . . . . . . . 1 . . . . 1 . 3 . 1 Rammed 4 | . . . . . 1 . . . . . . . . . 2 . . . 1 . . . . . . . . Targets Rammed 216 | 2 . . . 7 1 . . . . . . . . 1 3 . . . 3 . . 2 2 1 . 11 183 Kicked 210 | 2 . . . 7 . . . . . . . . . 1 1 . . . . . . 2 2 1 . 11 183 Crushed 2 | . . . . . . . . . . . . . . . . . . . 2 . . . . . . . . Highest Temperature 394 | . . 224 . 18 72 57 186 . 243 140 3 114 278 36 2 217 385 87 259 215 197 255 307 198 72 30 394 Average Temperature 82 | . . 95 . 8 23 19 54 . 94 58 3 76 97 18 1 111 186 29 68 121 103 129 108 87 24 11 75 Received Heat Transfer 3038 | . . 18 . 144 72 50 . . 195 54 76 166 170 239 305 198 . . 141 427 39 42 78 147 152 135 190 Effects 14 | . . 1 . . . . . . . . . . 2 . . . . . . . . . . . . . 11 Energy Bleed 6 | . . 1 . . . . . . . . . . 1 . . . . . . . . . . . . . 4 Interference 7 | . . . . . . . . . . . . . 1 . . . . . . . . . . . . . 6 Damage (minor) 1 | . . . . . . . . . . . . . . . . . . . . . . . . . . . 1 Siege Activations 9 | . . . . . . . . . . . . . . . . 2 . . 5 2 . . . . . . . Total Turns 232 | . . . . . . . . . . . . . . . . 35 . . 162 35 . . . . . . . Longest Duration 87 | . . . . . . . . . . . . . . . . 22 . . 87 19 . . . . . . . Robots Corrupted 7 | . . . . . . . . . . . . . . . . . . 2 . . . . 1 2 2 . . Combat Hostiles 4 | . . . . . . . . . . . . . . . . . . 1 . . . . 1 1 1 . . Parts Fried 16 | . . . . . . . . . . . . . . . . . . . 1 . 1 . 1 5 6 . 2 Impact Corruptions 23 | . . . . . . . . . . . . . . . . . . . 1 . 1 . 3 . . 5 13 Robots Melted . | . . . . . . . . . . . . . . . . . . . . . . . . . . . . Combat Hostiles . | . . . . . . . . . . . . . . . . . . . . . . . . . . . . Parts Melted 6 | . . . . . . . . . . . . . . . 3 . . . . . . 1 1 . . . 1 Heat Transferred 1750 | . . . . . . 100 . . . . . . 100 75 . . . . . . . 625 300 . 450 . 100 Parts Sabotaged . | . . . . . . . . . . . . . . . . . . . . . . . . . . . . Parts Stolen . | . . . . . . . . . . . . . . . . . . . . . . . . . . . . Parts Stripped . | . . . . . . . . . . . . . . . . . . . . . . . . . . . . Power Chain Reactions . | . . . . . . . . . . . . . . . . . . . . . . . . . . . . Missiles Intercepted . | . . . . . . . . . . . . . . . . . . . . . . . . . . . . Alert | -11 -10 -10 -10 -9 -8 -7 -7 -7 -6 -6 -6 -6 -5 -5 -5 -5 -5 -5 -4 -4 -4 -4 -3 -3 -2 -1 -1 ------- Run | Scr Mat Min Exi Min Mat Fac Low Low Fac Low Low Dat Pro Fac Ext Cet Arc Hub Fac Upp Upp War Pro Res Res Acc Com Peak Influence 800 | 40 26 114 . 168 142 646 . . 165 . . . . 781 800 735 529 692 475 . . . . 231 643 410 296 Initial 448 | . 26 9 . . 6 4 . . 9 . . . . 103 382 448 294 184 329 . . . . 131 48 385 139 Average 233 | 24 26 91 . 86 53 419 . . 68 . . . . 318 513 563 495 371 242 . . . . 104 207 315 87 Maximum Alert Level 3 | . . . . . . 2 . . . . . . . 3 3 3 2 2 2 . . . . 1 2 2 1 Low Security (%) 38 | 100 100 100 . 100 100 17 . . 100 . . . . 50 . . . 10 51 . . . . 80 74 12 18 Level 1 44 | . . . . . . 16 . . . . . . . . 16 . 14 57 28 . . . . 19 . 82 81 Level 2 15 | . . . . . . 66 . . . . . . . 48 72 88 85 31 20 . . . . . 25 4 . Level 3 1 | . . . . . . . . . . . . . . 1 10 11 . . . . . . . . . . . Level 4 . | . . . . . . . . . . . . . . . . . . . . . . . . . . . . Level 5 . | . . . . . . . . . . . . . . . . . . . . . . . . . . . . High Security . | . . . . . . . . . . . . . . . . . . . . . . . . . . . . Max Security . | . . . . . . . . . . . . . . . . . . . . . . . . . . . . Squads Dispatched 54 | . . . . . 2 5 . . 7 . . . . 9 2 . . 3 7 . . . . 10 1 2 6 Investigation 7 | . . . . . 1 . . . . . . . . . 1 . . . . . . . . 4 . 1 . Extermination 13 | . . . . . . . . . 2 . . . . 2 . . . . 4 . . . . . . 1 4 Reinforcement 26 | . . . . . 1 2 . . 5 . . . . 4 . . . 3 2 . . . . 6 1 . 2 Assault 2 | . . . . . . . . . . . . . . 1 1 . . . . . . . . . . . . Garrison 6 | . . . . . . 3 . . . . . . . 2 . . . . 1 . . . . . . . . Intercept . | . . . . . . . . . . . . . . . . . . . . . . . . . . . . Construction Impeded 1 | . . . . . . . . . . . . . . . . . . . . . . . . 1 . . . Haulers Reinforced 3 | . . . . . . . . . 1 . . . . 2 . . . . . . . . . . . . . Cargo Convoy Interrupts 1 | . . . . . . . . . . . . . . 1 . . . . . . . . . . . . . Stealth | -11 -10 -10 -10 -9 -8 -7 -7 -7 -6 -6 -6 -6 -5 -5 -5 -5 -5 -5 -4 -4 -4 -4 -3 -3 -2 -1 -1 --------- Run | Scr Mat Min Exi Min Mat Fac Low Low Fac Low Low Dat Pro Fac Ext Cet Arc Hub Fac Upp Upp War Pro Res Res Acc Com Distress Signals 56 | . . . . . 1 2 . . 1 . . . . . 1 2 . 1 1 . . . 1 9 9 1 27 Communications Jammed . | . . . . . . . . . . . . . . . . . . . . . . . . . . . . Distress Signals . | . . . . . . . . . . . . . . . . . . . . . . . . . . . . Times Spotted 355 | . . 5 . 14 7 19 11 . 16 10 5 4 18 28 34 13 4 . 21 14 10 32 8 17 18 17 30 Peak Tracking Total 13 | . . 3 . 4 3 4 3 . 5 7 4 2 5 10 5 5 . . 5 4 6 13 5 4 6 11 10 Tactical Retreats 21 | . . 1 . 2 . 2 6 . . 1 . . 1 2 3 . . . . . 1 . 1 . . . 1 Traps | -11 -10 -10 -10 -9 -8 -7 -7 -7 -6 -6 -6 -6 -5 -5 -5 -5 -5 -5 -4 -4 -4 -4 -3 -3 -2 -1 -1 ------- Run | Scr Mat Min Exi Min Mat Fac Low Low Fac Low Low Dat Pro Fac Ext Cet Arc Hub Fac Upp Upp War Pro Res Res Acc Com Traps Triggered 9 | . . . . . 1 . . . . . . . . . 2 . . . 1 . . . . . . 1 4 Indirectly . | . . . . . . . . . . . . . . . . . . . . . . . . . . . . Trap Hack Attempts . | . . . . . . . . . . . . . . . . . . . . . . . . . . . . Triggered . | . . . . . . . . . . . . . . . . . . . . . . . . . . . . Disarmed . | . . . . . . . . . . . . . . . . . . . . . . . . . . . . Reprogrammed . | . . . . . . . . . . . . . . . . . . . . . . . . . . . . Reused 4 | . . . . . . . . . . . . . . 2 . . . . . . 2 . . . . . . Traps Extracted . | . . . . . . . . . . . . . . . . . . . . . . . . . . . . Installed 4 | . . . . . . . . . . . . . . 2 . . . . . . 2 . . . . . . Triggered 22 | . . . . . . . . . . . . . 3 2 . . . . . 2 2 12 . . . . 1 Machines | -11 -10 -10 -10 -9 -8 -7 -7 -7 -6 -6 -6 -6 -5 -5 -5 -5 -5 -5 -4 -4 -4 -4 -3 -3 -2 -1 -1 ---------- Run | Scr Mat Min Exi Min Mat Fac Low Low Fac Low Low Dat Pro Fac Ext Cet Arc Hub Fac Upp Upp War Pro Res Res Acc Com Machines Disabled 38 | . . . . . . 10 . . . . . 1 . 2 1 2 4 9 4 . . 1 . 1 1 . 2 Max in Single Turn 6 | . . . . . . 6 . . . . . 1 . 1 1 2 1 5 1 . . . . 1 1 . 1 Garrison Access 2 | . . . . . . . . . . . . . . . . . . . . . . . . 1 1 . . Network Hub 2 | . . . . . . . . . . . . . . . . . . 2 . . . . . . . . . Machines Sabotaged . | . . . . . . . . . . . . . . . . . . . . . . . . . . . . Garrisons Compromised . | . . . . . . . . . . . . . . . . . . . . . . . . . . . . Overloaded Fab Kills . | . . . . . . . . . . . . . . . . . . . . . . . . . . . . Fab Network Shutdowns 1 | . . . . . . . . . . . . . . . . . . . . . . . . . 1 . . Hacking | -11 -10 -10 -10 -9 -8 -7 -7 -7 -6 -6 -6 -6 -5 -5 -5 -5 -5 -5 -4 -4 -4 -4 -3 -3 -2 -1 -1 --------- Run | Scr Mat Min Exi Min Mat Fac Low Low Fac Low Low Dat Pro Fac Ext Cet Arc Hub Fac Upp Upp War Pro Res Res Acc Com Machines Accessed 50 | . . 1 2 1 4 1 1 . 5 . . 3 . 5 8 . . . 4 . . 1 . 5 1 3 5 Terminals 38 | . . 1 . 1 4 1 . . 4 . . . . 4 8 . . . 2 . . . . 5 . 3 5 Fabricators 4 | . . . . . . . . . 1 . . . . . . . . . 2 . . . . . 1 . . Repair Stations . | . . . . . . . . . . . . . . . . . . . . . . . . . . . . Recycling Units . | . . . . . . . . . . . . . . . . . . . . . . . . . . . . Scanalyzers . | . . . . . . . . . . . . . . . . . . . . . . . . . . . . Garrison Access 1 | . . . . . . . . . . . . . . 1 . . . . . . . . . . . . . Total Hacks 192 | . . 2 2 2 13 4 1 . 23 . . 24 . 19 16 . . . 34 . . 1 . 21 6 5 19 Successful 114 | . . 1 2 1 6 3 1 . 16 . . 24 . 11 8 . . . 15 . . 1 . 5 5 3 12 Failed 78 | . . 1 . 1 7 1 . . 7 . . . . 8 8 . . . 19 . . . . 16 1 2 7 Catastrophic 9 | . . . . . . . . . . . . . . 1 . . . . 4 . . . . 3 . . 1 Database Lockouts . | . . . . . . . . . . . . . . . . . . . . . . . . . . . . Manual 38 | . . . 1 2 . 1 . . 13 . . . . 8 . 1 . . 9 . . 1 . . 2 . . Terminals 137 | . . 2 . 2 13 4 . . 19 . . . . 12 16 . . . 24 . . . . 21 . 5 19 Fabricators 20 | . . . . . . . . . 4 . . . . . . . . . 10 . . . . . 6 . . Repair Stations . | . . . . . . . . . . . . . . . . . . . . . . . . . . . . Recycling Units . | . . . . . . . . . . . . . . . . . . . . . . . . . . . . Scanalyzers . | . . . . . . . . . . . . . . . . . . . . . . . . . . . . Garrison Access 7 | . . . . . . . . . . . . . . 7 . . . . . . . . . . . . . Terminal Hacks 97 | . . 1 2 1 6 3 1 . 12 . . 24 . 9 8 . . . 9 . . 1 . 5 . 3 12 Record 7 | . . . 1 . . . . . . . . 6 . . . . . . . . . . . . . . . Part Schematic 9 | . . . . . . . . . 1 . . 8 . . . . . . . . . . . . . . . Robot Schematic 9 | . . . . 1 . . . . . . . 7 . . . . . . . . . . . 1 . . . Robot Analysis 2 | . . . . . . . . . . . . . . 1 . . . . . . . . . . . . 1 Prototype ID Bank 11 | . . . . . 3 . . . 1 . . 3 . 1 . . . . 1 . . . . . . . 2 Open Door 14 | . . . . . . . 1 . . . . . . . 8 . . . . . . 1 . . . 3 1 Level Access Points 2 | . . . . . . . . . . . . . . . . . . . . . . . . 1 . . 1 Branch Access Points 4 | . . . . . . 1 . . 1 . . . . 1 . . . . 1 . . . . . . . . Emergency Access Points 2 | . . . . . . . . . 1 . . . . . . . . . 1 . . . . . . . . Machine Index 1 | . . . . . . . . . . . . . . . . . . . . . . . . 1 . . . Terminal Index 2 | . . . . . . . . . 1 . . . . . . . . . . . . . . . . . 1 Fabricator Index 1 | . . . . . . . . . 1 . . . . . . . . . . . . . . . . . . Alert Level 5 | . . . . . 1 . . . . . . . . 1 . . . . 1 . . . . . . . 2 Unreport Threat 7 | . . . . . . . . . 2 . . . . 2 . . . . 2 . . . . 1 . . . Locate Traps 6 | . . . . . . 1 . . 1 . . . . 2 . . . . 1 . . . . . . . 1 Patrol Status 4 | . . . . . 1 . . . 1 . . . . . . . . . . . . . . 1 . . 1 Recall Extermination 2 | . . . . . . . . . . . . . . 1 . . . . 1 . . . . . . . . Zone Layout 6 | . . 1 . . 1 1 . . 2 . . . . . . . . . 1 . . . . . . . . EX-Prototype ID Bank 1 | . . . 1 . . . . . . . . . . . . . . . . . . . . . . . . Disengage Seal 2 | . . . . . . . . . . . . . . . . . . . . . . . . . . . 2 Fabricator Hacks 10 | . . . . . . . . . 3 . . . . . . . . . 4 . . . . . 3 . . Load Schematic 4 | . . . . . . . . . 1 . . . . . . . . . 2 . . . . . 1 . . Build 6 | . . . . . . . . . 2 . . . . . . . . . 2 . . . . . 2 . . Repair Station Hacks . | . . . . . . . . . . . . . . . . . . . . . . . . . . . . Recycling Unit Hacks . | . . . . . . . . . . . . . . . . . . . . . . . . . . . . Scanalyzer . | . . . . . . . . . . . . . . . . . . . . . . . . . . . . Garrison Access Hacks . | . . . . . . . . . . . . . . . . . . . . . . . . . . . . Unauthorized Hacks 7 | . . . . . . . . . 1 . . . . 2 . . . . 2 . . . . . 2 . . Terminals 3 | . . . . . . . . . 1 . . . . . . . . . 2 . . . . . . . . Botnet 2 | . . . . . . . . . 1 . . . . . . . . . 1 . . . . . . . . Operators 1 | . . . . . . . . . . . . . . . . . . . 1 . . . . . . . . Fabricators 2 | . . . . . . . . . . . . . . . . . . . . . . . . . 2 . . Prioritize 1 | . . . . . . . . . . . . . . . . . . . . . . . . . 1 . . Siphon 1 | . . . . . . . . . . . . . . . . . . . . . . . . . 1 . . Repair Stations . | . . . . . . . . . . . . . . . . . . . . . . . . . . . . Recycling Units . | . . . . . . . . . . . . . . . . . . . . . . . . . . . . Scanalyzers . | . . . . . . . . . . . . . . . . . . . . . . . . . . . . Garrison Access 2 | . . . . . . . . . . . . . . 2 . . . . . . . . . . . . . Broadcast 1 | . . . . . . . . . . . . . . 1 . . . . . . . . . . . . . Reprogram 1 | . . . . . . . . . . . . . . 1 . . . . . . . . . . . . . Data Cores Recovered 1 | . . . . . . . . . . . . . . . . . . . . . . . . . . . 1 Used . | . . . . . . . . . . . . . . . . . . . . . . . . . . . . Hacking Detections 30 | . . 1 . 1 4 1 . . 5 . . . . 5 3 . . . 4 . . . . 4 . . 2 Full Trace Events 2 | . . . . . . . . . . . . . . . 1 . . . . . . . . 1 . . . Feedback Events . | . . . . . . . . . . . . . . . . . . . . . . . . . . . . Feedback Blocked . | . . . . . . . . . . . . . . . . . . . . . . . . . . . . Robot Schematics Acquired 9 | . . . . 1 . . . . . . . 7 . . . . . . . . . . . 1 . . . Robots Built 2 | . . . . . . . . . . . . . . . . . . . . . . . . . 2 . . Matter 614 | . . . . . . . . . . . . . . . . . . . . . . . . . 614 . . Time 280 | . . . . . . . . . . . . . . . . . . . . . . . . . 280 . . Total Robot Build Rating 14 | . . . . . . . . . . . . . . . . . . . . . . . . . 14 . . Part Schematics Acquired 9 | . . . . . . . . . 1 . . 8 . . . . . . . . . . . . . . . Parts Built 3 | . . . . . . . . . 2 . . . . . . . . . 1 . . . . . . . . Matter 1100 | . . . . . . . . . 530 . . . . . . . . . 570 . . . . . . . . Time 290 | . . . . . . . . . 138 . . . . . . . . . 152 . . . . . . . . Total Part Build Rating 16 | . . . . . . . . . 11 . . . . . . . . . 5 . . . . . . . . Parts Repaired . | . . . . . . . . . . . . . . . . . . . . . . . . . . . . Time . | . . . . . . . . . . . . . . . . . . . . . . . . . . . . Parts Recycled . | . . . . . . . . . . . . . . . . . . . . . . . . . . . . Recycled Matter . | . . . . . . . . . . . . . . . . . . . . . . . . . . . . Retrieved Matter . | . . . . . . . . . . . . . . . . . . . . . . . . . . . . Retrieved Components . | . . . . . . . . . . . . . . . . . . . . . . . . . . . . Parts Scanalyzed . | . . . . . . . . . . . . . . . . . . . . . . . . . . . . Part Schematics Acquired . | . . . . . . . . . . . . . . . . . . . . . . . . . . . . Parts Damaged . | . . . . . . . . . . . . . . . . . . . . . . . . . . . . Bothacking | -11 -10 -10 -10 -9 -8 -7 -7 -7 -6 -6 -6 -6 -5 -5 -5 -5 -5 -5 -4 -4 -4 -4 -3 -3 -2 -1 -1 ------------ Run | Scr Mat Min Exi Min Mat Fac Low Low Fac Low Low Dat Pro Fac Ext Cet Arc Hub Fac Upp Upp War Pro Res Res Acc Com Used RIF Installer . | . . . . . . . . . . . . . . . . . . . . . . . . . . . . Robots Hacked . | . . . . . . . . . . . . . . . . . . . . . . . . . . . . Non-combat . | . . . . . . . . . . . . . . . . . . . . . . . . . . . . Combat . | . . . . . . . . . . . . . . . . . . . . . . . . . . . . Robot Hacks Applied . | . . . . . . . . . . . . . . . . . . . . . . . . . . . . Relay Couplers Released 4 | . . . . . . . . . . . . . . . . . . . . . . . . 3 1 . . Machine Destruction 4 | . . . . . . . . . . . . . . . . . . . . . . . . 3 1 . . Robots Rewired 22 | . . . . . . . . . 2 2 . . . . 15 . . . . . . 3 . . . . . Allies Hacked . | . . . . . . . . . . . . . . . . . . . . . . . . . . . . Hacks Repelled . | . . . . . . . . . . . . . . . . . . . . . . . . . . . . Allies | -11 -10 -10 -10 -9 -8 -7 -7 -7 -6 -6 -6 -6 -5 -5 -5 -5 -5 -5 -4 -4 -4 -4 -3 -3 -2 -1 -1 -------- Run | Scr Mat Min Exi Min Mat Fac Low Low Fac Low Low Dat Pro Fac Ext Cet Arc Hub Fac Upp Upp War Pro Res Res Acc Com Total Allies 45 | . . . . 3 . . . . 2 2 . . . 2 26 5 . . . . . 3 . . 2 . . Largest Group 14 | . . . . 3 . . . . 2 2 . . . 2 14 8 4 3 . . . 3 . . 2 . . Highest-Rated Group 537 | . . . . 40 . . . . 52 59 . . . 108 537 475 380 285 . . . 177 . . 186 . . Highest-Rated Ally 156 | . . . . 16 . . . . 32 30 . . . 54 156 156 95 95 . . . 65 . . 93 . . Total Orders 44 | . . . . . . . . . 1 . . . . . . 3 3 1 . . . 2 . . . 10 24 STAY 3 | . . . . . . . . . . . . . . . . 2 . . . . . 1 . . . . . ROAM 6 | . . . . . . . . . 1 . . . . . . . 1 1 . . . . . . . . 3 FOLLOW 5 | . . . . . . . . . . . . . . . . 1 2 . . . . 1 . . . . 1 EXPLORE 19 | . . . . . . . . . . . . . . . . . . . . . . . . . . 10 9 RETURN 11 | . . . . . . . . . . . . . . . . . . . . . . . . . . . 11 Ally Attacks 491 | . . . . 25 . . . . 11 1 . . . 8 210 39 38 32 . . . 16 . . . . 111 Total Damage 17273 | . . . . 244 . . . . 238 . . . . 162 3591 922 1267 968 . . . 968 . . 382 . 8531 Kills 88 | . . . . 7 . . . . 6 . . . . 5 25 6 5 7 . . . 3 . . 1 . 23 Allies Corrupted 1 | . . . . . . . . . . . . . . . 1 . . . . . . . . . . . . Allies Melted 1 | . . . . . . . . . . . . . . . . . . . . . . 1 . . . . . Turrets Deployed 3 | . . . . . . . . . . . . . . . . . . . . . . . . . . . 3 Intel | -11 -10 -10 -10 -9 -8 -7 -7 -7 -6 -6 -6 -6 -5 -5 -5 -5 -5 -5 -4 -4 -4 -4 -3 -3 -2 -1 -1 ------- Run | Scr Mat Min Exi Min Mat Fac Low Low Fac Low Low Dat Pro Fac Ext Cet Arc Hub Fac Upp Upp War Pro Res Res Acc Com Robot Analysis Total 2 | . . . . . . . . . . . . . . 1 . . . . . . . . . . . . 1 Derelict Logs Recovered 10 | . . 1 . 2 . . 2 . . . 2 . 2 . . . . . . 1 . . . . . . . Drone Launches 34 | . . . . . . . . . . . . . . . . . . . . . . . . . . 19 15 Drone Recoveries 20 | . . . . . . . . . . . . . . . . . . . . . . . . . . 9 11 Decoded 0b10 Intel 5 | . . . . . . . . . . . . . . 5 . . . . . . . . . . . . . Traps 3 | . . . . . . . . . . . . . . 3 . . . . . . . . . . . . . Emergency Access 2 | . . . . . . . . . . . . . . 2 . . . . . . . . . . . . . Exploration | -11 -10 -10 -10 -9 -8 -7 -7 -7 -6 -6 -6 -6 -5 -5 -5 -5 -5 -5 -4 -4 -4 -4 -3 -3 -2 -1 -1 ------------- Run | Scr Mat Min Exi Min Mat Fac Low Low Fac Low Low Dat Pro Fac Ext Cet Arc Hub Fac Upp Upp War Pro Res Res Acc Com Turns Passed 25585 | 258 39 362 371 801 565 455 1252 101 769 475 360 490 797 1039 1467 327 235 191 1670 550 672 1324 201 943 789 621 8461 Spaces Moved 11669 | 125 26 142 307 550 245 224 424 28 418 340 270 184 319 604 653 113 102 83 766 268 415 780 157 657 454 405 2610 Core 64 | 8 . . . . . . . . . . . . . . . . . . . . . . . . . . 56 Treads 2144 | 79 . . . . 186 42 256 28 . . . . . . 286 113 102 83 766 203 . . . . . . . Legs 6773 | 38 26 142 307 550 59 . . . . . . 80 319 604 367 . . . . . . 54 157 657 454 405 2554 Wheels 2688 | . . . . . . 182 168 . 418 340 270 104 . . . . . . . 65 415 726 . . . . . Hover . | . . . . . . . . . . . . . . . . . . . . . . . . . . . . Flight . | . . . . . . . . . . . . . . . . . . . . . . . . . . . . Fastest Speed 50 | 50 120 120 120 120 120 100 145 370 115 115 115 115 200 120 120 160 160 160 158 150 150 103 103 103 98 98 111 Average Speed 169 | 140 120 120 120 120 150 134 280 370 121 115 115 162 200 131 160 160 160 174 159 157 150 153 103 109 102 120 255 Slowest Speed 2950 | 160 120 120 120 120 160 160 370 370 130 115 115 360 200 200 260 160 160 260 162 170 150 190 103 184 103 182 2950 Overloaded Moves . | . . . . . . . . . . . . . . . . . . . . . . . . . . . . Propulsion Burnouts . | . . . . . . . . . . . . . . . . . . . . . . . . . . . . Robots Hopped . | . . . . . . . . . . . . . . . . . . . . . . . . . . . . Cave-ins Triggered 23 | . . . . . . . . . . . . . . . . . . 1 . . . . . . . . 22 Exploration Rate (%) 43 | 5 4 32 69 100 33 11 63 13 17 51 46 80 42 25 83 61 75 11 20 53 61 91 39 16 19 27 77 Regions Visited 27 Branch Regions 18 Pre-discovered Areas 4 | . . . 1 . . . . . . . . 1 1 . . . . . . 1 . . . . . . . Known Exits Taken 9 | . . . . . . 1 1 1 1 . . . 1 1 . . . . 1 . . . . 1 1 . . Unknown Exits Taken 18 | 1 1 1 1 1 1 . . . . 1 1 1 . . 1 1 1 1 . 1 1 1 1 . . 1 . Scrap Searched 12 | . . 1 . 2 . . . 2 . 1 2 . 1 . . . . . . 3 . . . . . . . Spaces Dug 212 | . . 7 . 12 . 4 . . 8 . . . . 10 . . . 6 4 . 2 . . 23 14 9 113 Terrain Destroyed 928 | . . 21 . 12 . 64 . . 8 . . . 6 45 20 25 1 175 26 17 10 25 40 44 70 12 307 Melee 31 | . . . . . . 4 . . 8 . . . . 1 . . . . . . . . . 3 1 2 12 Projectile 569 | . . 21 . . . . . . . . . . 6 44 20 25 1 7 26 17 10 5 7 41 42 10 287 AOE 327 | . . . . 12 . 60 . . . . . . . . . . . 168 . . . 20 33 . 27 . 7 Terrain Rammed 2 | . . . . . . . . . . . . . . . . . . . . . . . . . . . 2 Walls Destroyed 1 | . . . . . . . . . . . . . . . . . . . . . . . . . . . 1 Machines Disabled . | . . . . . . . . . . . . . . . . . . . . . . . . . . . . Actions | -11 -10 -10 -10 -9 -8 -7 -7 -7 -6 -6 -6 -6 -5 -5 -5 -5 -5 -5 -4 -4 -4 -4 -3 -3 -2 -1 -1 --------- Run | Scr Mat Min Exi Min Mat Fac Low Low Fac Low Low Dat Pro Fac Ext Cet Arc Hub Fac Upp Upp War Pro Res Res Acc Com Total 15771 | 164 35 229 310 641 411 315 461 28 617 390 298 340 409 750 976 167 158 117 1076 319 438 903 178 798 744 530 3969 Wait 1873 | . . 32 . 42 122 3 3 . 134 21 15 75 39 28 96 6 38 10 174 4 . 34 . 46 194 57 700 Move 11624 | 124 25 141 306 549 244 223 423 27 417 339 269 183 318 603 652 112 101 81 765 267 414 779 156 656 453 404 2593 Hop . | . . . . . . . . . . . . . . . . . . . . . . . . . . . . Pick Up 177 | 3 4 2 3 . 6 14 6 1 8 2 . 7 9 8 9 . 2 6 18 1 2 5 1 4 6 7 43 Fast Attach 170 | 9 . . . 1 6 8 4 . 1 1 1 8 2 13 16 4 4 . 12 3 1 12 . 5 12 10 37 Attach 135 | . 1 1 . . 3 2 4 . 5 1 2 9 6 8 6 . . 5 6 4 3 2 2 6 7 7 45 Detach 86 | 2 1 . . . . 4 1 . 3 1 1 4 . 3 3 . . 2 4 2 . 6 . 4 3 8 34 Swap 89 | . 2 13 . 6 2 7 2 . 10 1 . 8 . 6 4 . 1 2 9 1 . . . 4 4 1 6 Drop 221 | . 2 3 1 5 9 8 5 . 3 2 . 4 3 24 17 4 5 2 22 3 2 20 . 6 11 10 50 Fire 800 | 24 . 37 . 31 18 27 13 . 22 15 10 8 32 44 44 41 7 8 63 34 14 5 17 34 40 10 202 Melee 147 | . . . . . . 19 . . 8 . . 34 . 10 . . . . . . . . . 32 2 5 37 Ram 2 | . . . . . . . . . . . . . . . . . . . . . . . . . . . 2 Kick 210 | 2 . . . 7 . . . . . . . . . 1 1 . . . . . . 2 2 1 . 11 183 Crush 6 | . . . . . 1 . . . . . . . . . 2 . . . 3 . . . . . . . . Escape Stasis 37 | . . . . . . . . . . . . . . . . . . 1 . . . . . . . . 36 Rewire 190 | . . . . . . . . . 6 7 . . . . 126 . . . . . . 38 . . 12 . 1 Trap 4 | . . . . . . . . . . . . . . 2 . . . . . . 2 . . . . . . Miscellaneous . | . . . . . . . . . . . . . . . . . . . . . . . . . . . . Route ------- -11/Scrapyard -10/Materials -10/Mines (discovered 2 exits: Mat / *Exi) -10/Exiles -9/Mines (discovered 2 exits: *Mat x2) -8/Materials -7/Factory (discovered 3 exits: Sto / *Low x2) -7/Lower Caves -7/Lower Caves -6/Factory (discovered 3 exits: Fac / *Low x2) -6/Lower Caves -6/Lower Caves -6/Data Miner -5/Proximity Caves -5/Factory (discovered 7 exits: *Fac x3 / Upp x2 / *Ext x2) -5/Extension (discovered 2 exits: *Fac / *Cet) -5/Cetus -5/Archives (discovered 2 exits: [*Hub x2]) -5/Hub_04(d) -4/Factory (discovered 2 exits: *Upp x2) -4/Upper Caves -4/Upper Caves (discovered 2 exits: *Res / *War) -4/Warlord -3/Proximity Caves -3/Research (discovered 4 exits: *Res x3 / [*Tes]) -2/Research -1/Access -1/Command (discovered 2 exits: *Sur x2) 0b11 Command History --------- Turn | Location | Event 31 | -11/Scrapyard | Discovered new exit (range 15) 259 | -11/Scrapyard | Entered Materials 259 | -10/Materials | Discovered new exit (range 7) 298 | -10/Materials | Entered Mines 375 | -10/Mines | Build established: Mutant 591 | -10/Mines | Received a Rocket Launcher from a helpful Derelict 604 | -10/Mines | Identified exit to Materials 655 | -10/Mines | Deemed a non-threat by the Exiles lab entrance 655 | -10/Mines | Discovered new exit (range 5) 660 | -10/Mines | Entered Exiles 690 | -10/Exiles | Met 8R-AWN 707 | -10/Exiles | Met EX-HEX 774 | -10/Exiles | Met EX-DEC 795 | -10/Exiles | Learned location of Zion (-7) 857 | -10/Exiles | Met EX-BIN 872 | -10/Exiles | Aligned with FarCom system 873 | -10/Exiles | Given EX-Vault access code 902 | -10/Exiles | Opened EX-Vault 911 | -10/Exiles | Found Deploy-a-Sentry 913 | -10/Exiles | Found Deploy-a-Sentry 916 | -10/Exiles | Found Deploy-a-Sentry 939 | -10/Exiles | Warned to stay clear of 0b10 Research branches 1017 | -10/Exiles | Discovered new exit (range 14) 1031 | -10/Exiles | Left Exiles lab with Deploy-a-Sentry 1031 | -10/Exiles | Entered Mines 1071 | -9/Mines | Learned Materials garrison access intel 1327 | -9/Mines | Build established: Skirmisher 1336 | -9/Mines | Assisted by bots powering up and referring to "LRC-V3" 1385 | -9/Mines | Discovered new exit (range 10) 1415 | -9/Mines | Learned Materials garrison access intel 1439 | -9/Mines | Discovered new exit (range 9) 1718 | -9/Mines | Build established: Mutant 1832 | -9/Mines | Entered Materials 1832 | -8/Materials | Evolved 4 slots: Propulsion x1, Utility x2, Weapon x1 1833 | -8/Materials | Loaded intel: 1 garrison access location 2349 | -8/Materials | Discovered new exit (range 16) 2397 | -8/Materials | Entered Factory 2397 | -7/Factory | Evolved 2 slots: Utility x2 2414 | -7/Factory | Garrison activated, responded to threat 2451 | -7/Factory | Identified exit to Storage 2451 | -7/Factory | Identified exit to Lower Caves 2852 | -7/Factory | Entered Lower Caves 3043 | -7/Lower Caves | Encountered a Warlord checkpoint 3059 | -7/Lower Caves | Learned Factory garrison access intel 3145 | -7/Lower Caves | Lost 4 parts (1p1n2u) 3583 | -7/Lower Caves | Build established: Scavenger-Gunner 3586 | -7/Lower Caves | Learned location of 1 exit from Factory 3962 | -7/Lower Caves | Build established: Scavenger-Mutant 4067 | -7/Lower Caves | Discovered new exit (range 9) 4101 | -7/Lower Caves | Identified exit to Lower Caves 4104 | -7/Lower Caves | Entered another Lower Caves area 4157 | -7/Lower Caves | Discovered new exit (range 12) 4198 | -7/Lower Caves | Identified exit to Factory 4205 | -7/Lower Caves | Entered Factory 4205 | -6/Factory | Evolved 2 slots: Propulsion x1, Utility x1 4206 | -6/Factory | Identified exit to Factory 4207 | -6/Factory | Loaded intel: 4 garrison access locations 4523 | -6/Factory | Build established: Skirmisher 4556 | -6/Factory | Identified exit to Lower Caves 4824 | -6/Factory | Fabricated Centrium Light Armor Plating (x1) 4860 | -6/Factory | Fabricated Actuator Array (x1) 4974 | -6/Factory | Entered Lower Caves 5114 | -6/Lower Caves | Attracted the attention of an 0b10 outpost 5284 | -6/Lower Caves | Build established: Hacker-Tank 5434 | -6/Lower Caves | Spotted B-75 Beast 5439 | -6/Lower Caves | Discovered new exit (range 9) 5449 | -6/Lower Caves | Entered another Lower Caves area 5629 | -6/Lower Caves | Learned Factory stockpile data 5776 | -6/Lower Caves | Learned Factory terminal intel 5800 | -6/Lower Caves | Discovered new exit (range 8) 5809 | -6/Lower Caves | Entered Data Miner 5818 | -6/Data Miner | Discovered new exit (range 6) 5842 | -6/Data Miner | Met Data Miner 5864 | -6/Data Miner | Learned location of Section 7 (-2) 5864 | -6/Data Miner | Acquired the access code to Warlord's prototype stash 5881 | -6/Data Miner | Received God Mode back door access code from Data Miner 5916 | -6/Data Miner | Data Conduit disabled 6065 | -6/Data Miner | Core integrity fell below 50% 6092 | -6/Data Miner | Lost 5 parts (2n2u1w) 6190 | -6/Data Miner | Found Prototype Device 6190 | -6/Data Miner | Identified Exp. Thermal Shield 6196 | -6/Data Miner | Found Exp. Thermal Shield 6299 | -6/Data Miner | Entered Proximity Caves 6681 | -5/Proximity Caves | Build established: Scavenger-Tank 6685 | -5/Proximity Caves | Lost 3 parts (1u2w) 6831 | -5/Proximity Caves | Learned location of Warlord (-4) 7096 | -5/Proximity Caves | Entered Factory 7096 | -5/Factory | Evolved 2 slots: Power x1, Utility x1 7098 | -5/Factory | Loaded intel: 21 terminal locations 7185 | -5/Factory | Lost 4 parts (1p1n2w) 7263 | -5/Factory | Identified exit to Upper Caves 7263 | -5/Factory | Identified exit to Extension 7417 | -5/Factory | Build established: Scavenger-Mutant 7421 | -5/Factory | Spotted B-75 Beast 7594 | -5/Factory | Discovered new exit (range 10) 7619 | -5/Factory | Cargo convoy interrupted 7784 | -5/Factory | Build established: Scavenger-Tank 7871 | -5/Factory | Discovered new exit (range 13) 7996 | -5/Factory | First assault squad dispatched 8042 | -5/Factory | Garrison activated, responded to threat 8104 | -5/Factory | Discovered new exit (range 6) 8117 | -5/Factory | Garrison activated, responded to threat 8135 | -5/Factory | Entered Extension 8262 | -5/Extension | Lost 5 parts (1p1n3u) 8265 | -5/Extension | Rescued a captive Derelict 8266 | -5/Extension | Rescued a captive Derelict 8436 | -5/Extension | Rescued a captive Derelict 8451 | -5/Extension | Rescued a captive Derelict 8452 | -5/Extension | Rescued a captive Derelict 8638 | -5/Extension | Build established: Scavenger-Skirmisher 8658 | -5/Extension | Spotted B-75 Beast 8687 | -5/Extension | Allies destroyed B-75 Beast 8694 | -5/Extension | Spotted B-75 Beast 8701 | -5/Extension | Allies destroyed B-75 Beast 8775 | -5/Extension | Rescued a captive Derelict 8791 | -5/Extension | Rescued a captive Derelict 9202 | -5/Extension | Rescued a captive Derelict 9209 | -5/Extension | Rescued a captive Derelict 9281 | -5/Extension | Rescued A7 9335 | -5/Extension | First assault squad dispatched 9348 | -5/Extension | Rescued a captive Derelict 9576 | -5/Extension | Discovered new exit (range 10) 9578 | -5/Extension | Discovered new exit (range 6) 9602 | -5/Extension | Entered Cetus 9602 | -5/Cetus | Accompanied by 8 allies (A7) 9607 | -5/Cetus | Acquired a Cetus Manufacturing Module code from A7 9624 | -5/Cetus | Spotted Cetus Guard 9624 | -5/Cetus | Spotted Cetus Guard 9631 | -5/Cetus | Spotted Cetus Guard 9632 | -5/Cetus | Spotted Cetus Guard 9637 | -5/Cetus | Allies destroyed Cetus Guard 9639 | -5/Cetus | Allies destroyed Cetus Guard 9643 | -5/Cetus | Allies destroyed Cetus Guard 9644 | -5/Cetus | Allies destroyed Cetus Guard 9691 | -5/Cetus | Build established: Scavenger-Tank 9728 | -5/Cetus | Destroyed A7 9739 | -5/Cetus | Extracted ID and sensor layout for unrecognized location from A7's data core 9778 | -5/Cetus | Started Cetus Manufacturing Module 9803 | -5/Cetus | Manufactured an Enhanced Grunt 9828 | -5/Cetus | Manufactured an Enhanced Grunt 9832 | -5/Cetus | Discovered new exit (range 16) 9853 | -5/Cetus | Manufactured an Enhanced Grunt 9860 | -5/Cetus | Spotted Cetus Guard 9861 | -5/Cetus | Spotted Cetus Guard 9864 | -5/Cetus | Destroyed Cetus Guard 9864 | -5/Cetus | Spotted Cetus Guard 9865 | -5/Cetus | Spotted Cetus Guard 9875 | -5/Cetus | Destroyed Cetus Guard 9878 | -5/Cetus | Manufactured an Enhanced Grunt 9881 | -5/Cetus | Destroyed Cetus Guard 9891 | -5/Cetus | Destroyed Cetus Guard 9903 | -5/Cetus | Manufactured an Enhanced Grunt 9929 | -5/Cetus | Entered Archives 9929 | -5/Archives | Accompanied by 4 allies 10042 | -5/Archives | Discovered new exit (range 16) 10061 | -5/Archives | Discovered new exit (range 15) 10164 | -5/Archives | Entered Hub_04(d) 10164 | -5/Hub_04(d) | Accompanied by 3 allies 10219 | -5/Hub_04(d) | Crushed by falling debris 10220 | -5/Hub_04(d) | System corruption reached 10% 10301 | -5/Hub_04(d) | Network Hub disabled 10307 | -5/Hub_04(d) | Network Hub disabled 10309 | -5/Hub_04(d) | Discovered new exit (range 7) 10346 | -5/Hub_04(d) | System corruption reached 30% 10355 | -5/Hub_04(d) | Entered Factory 10355 | -4/Factory | Evolved 2 slots: Propulsion x2 10513 | -4/Factory | Garrison activated, responded to threat 11189 | -4/Factory | Build established: Scavenger-Skirmisher 11401 | -4/Factory | Fabricated Exp. Targeting Computer (x1) 11525 | -4/Factory | Identified exit to Upper Caves 11715 | -4/Factory | Build established: Scavenger-Gunner 11839 | -4/Factory | Found Prototype Hackware 12025 | -4/Factory | Entered Upper Caves 12372 | -4/Upper Caves | Learned location of Testing (-3) 12556 | -4/Upper Caves | Discovered new exit (range 10) 12575 | -4/Upper Caves | Entered another Upper Caves area 12577 | -4/Upper Caves | Discovered new exit (range 15) 12611 | -4/Upper Caves | Spotted B-86 Titan 12680 | -4/Upper Caves | P-70 Sage assimilated allied CN-WVD(S) 12716 | -4/Upper Caves | Lost 3 parts (2n1w) 12817 | -4/Upper Caves | Attracted the attention of an 0b10 base 12926 | -4/Upper Caves | System corruption reached 10% 13229 | -4/Upper Caves | Discovered new exit (range 11) 13247 | -4/Upper Caves | Entered Warlord 13297 | -4/Warlord | System corruption cleaned by Quarantine Array 13546 | -4/Warlord | Build established: Scavenger-Mutant 13632 | -4/Warlord | Received a Watcher feed algorithm from an ecstatic Tinkerer 13824 | -4/Warlord | Found Prototype Device 14035 | -4/Warlord | Warlord's base attacked by MAIN.C 14106 | -4/Warlord | Found Prototype Energy Gun 14106 | -4/Warlord | Identified Vortex Rail 14112 | -4/Warlord | Found Vortex Rail 14115 | -4/Warlord | Found Vortex Rail 14125 | -4/Warlord | Found Vortex Rail 14235 | -4/Warlord | Met Warlord 14250 | -4/Warlord | Opened Warlord's prototype stash 14256 | -4/Warlord | Found Prototype Reactor 14256 | -4/Warlord | Identified Vortex Chain Reactor 14279 | -4/Warlord | Found Exp. Targeting Computer 14385 | -4/Warlord | Warlord forces counterattacked 14442 | -4/Warlord | Spotted B-90 Cyclops 14449 | -4/Warlord | Spotted Executioner 14451 | -4/Warlord | Allies destroyed B-90 Cyclops 14478 | -4/Warlord | Spotted Striker 14500 | -4/Warlord | Found Prototype Processor 14500 | -4/Warlord | Identified Exp. Core Analyzer 14531 | -4/Warlord | Discovered new exit (range 14) 14535 | -4/Warlord | Spotted Striker 14571 | -4/Warlord | Entered Proximity Caves 14764 | -3/Proximity Caves | Discovered new exit (range 10) 14772 | -3/Proximity Caves | Entered Research 14772 | -3/Research | Evolved 2 slots: Utility x2 14819 | -3/Research | Identified Exp. Hacking Suite 14972 | -3/Research | Revision forces began assault on 0b10 15033 | -3/Research | Met up with Revision 17++ 15158 | -3/Research | Discovered new exit (range 10) 15240 | -3/Research | Identified exit to Research 15472 | -3/Research | Research terminal network offline 15715 | -3/Research | Entered another Research area 15715 | -2/Research | Warlord forces began assault on 0b10 15715 | -2/Research | Evolved 2 slots: Utility x2 15823 | -2/Research | Fabricated A-27 Freighter (x1) 15825 | -2/Research | Research machine network offline 15916 | -2/Research | Fabricated A-27 Freighter? 16116 | -2/Research | Borebot progress halted 16173 | -2/Research | Found Prototype Processor 16173 | -2/Research | Identified Exp. Melee Analysis Suite 16182 | -2/Research | Met up with Warlord 16200 | -2/Research | Borebot progress halted 16238 | -2/Research | Borebot progress halted 16305 | -2/Research | Local fabrication network quarantined 16406 | -2/Research | Spotted Executioner 16414 | -2/Research | Spotted Executioner 16428 | -2/Research | Destroyed Executioner 16432 | -2/Research | Destroyed Executioner 16476 | -2/Research | Spotted B-90 Cyclops 16491 | -2/Research | Discovered new exit (range 4) 16494 | -2/Research | Identified exit to Access 16496 | -2/Research | System corruption reached 10% 16504 | -2/Research | Entered Access 16504 | -1/Access | Evolved 2 slots: Utility x2 17119 | -1/Access | Discovered new exit (range 7) 17125 | -1/Access | Entered Command 17360 | -1/Command | Lost 5 parts (1p2n2u) 17392 | -1/Command | Disengaged cave seal 17392 | -1/Command | Derelicts emerged from the dark tunnel 17392 | -1/Command | Welcomed Warlord to Command 17782 | -1/Command | Identified exit to Surface 18008 | -1/Command | Found Adv. Powered Armor 18020 | -1/Command | Build established: Hacker-Mutant 18252 | -1/Command | Disengaged cave seal 18298 | -1/Command | Spotted M Guard 18299 | -1/Command | Spotted Combat Programmer 18314 | -1/Command | Warlord commented on Warlord statues 18319 | -1/Command | Combat Programmer assimilated allied X2-51B(g) 18320 | -1/Command | Spotted Combat Programmer 18325 | -1/Command | Spotted M Guard 18327 | -1/Command | Combat Programmer assimilated allied 8R-GER(M) 18394 | -1/Command | Destroyed M Guard 18394 | -1/Command | All MAIN.C guards destroyed 18742 | -1/Command | Met MAIN.C 18742 | -1/Command | 0b10 Conduit disabled 18744 | -1/Command | Warlord shut down involuntarily 18761 | -1/Command | DAS Turret deployed 18790 | -1/Command | Allies destroyed MAIN.C Shell 18792 | -1/Command | MAIN.C activated Command garrisons 18796 | -1/Command | DAS Turret deployed 18799 | -1/Command | DAS Turret deployed 18832 | -1/Command | Identified Wardrone Bay 18850 | -1/Command | Allies destroyed MAIN.C 18867 | -1/Command | Lost 9 parts (1p1n5u2w) 19022 | -1/Command | System corruption reached 10% 19135 | -1/Command | Build established: Scavenger-Mutant 19846 | -1/Command | Build established: Hauler-Mutant 20710 | -1/Command | Found Prototype Reactor 20710 | -1/Command | Identified Zero-point Reactor 20719 | -1/Command | Found Vortex Chain Reactor 20722 | -1/Command | Found Prototype Protection 20722 | -1/Command | Identified Hvy. Regenerative Plating 20726 | -1/Command | Found Prototype Device 20726 | -1/Command | Identified Adv. Kinecellerator 20729 | -1/Command | Found Prototype Processor 20729 | -1/Command | Identified Exp. Target Analyzer 20733 | -1/Command | Found Prototype Device 20733 | -1/Command | Identified Exp. Force Field 20736 | -1/Command | Found Prototype Device 20736 | -1/Command | Identified Femtoactuators 20748 | -1/Command | Found Femtoactuators 20777 | -1/Command | Found Prototype Launcher 20777 | -1/Command | Identified Z-bomb Delivery System 21556 | -1/Command | Attacked by Warlord forces 22357 | -1/Command | Spotted B-99 Colossus 22398 | -1/Command | Allies destroyed B-99 Colossus 23760 | -1/Command | Found Hvy. Reflective Plating 24041 | -1/Command | Build established: Scavenger-Mutant 24573 | -1/Command | Crushed by falling debris 24666 | -1/Command | Crushed by falling debris 24675 | -1/Command | Crushed by falling debris 24731 | -1/Command | Crushed by falling debris 24811 | -1/Command | Crushed by falling debris 24976 | -1/Command | Crushed by falling debris 25053 | -1/Command | Crushed by falling debris 25098 | -1/Command | Crushed by falling debris 25109 | -1/Command | Crushed by falling debris 25136 | -1/Command | Crushed by falling debris 25182 | -1/Command | Crushed by falling debris 25227 | -1/Command | Crushed by falling debris 25239 | -1/Command | Crushed by falling debris 25245 | -1/Command | Crushed by falling debris 25245 | -1/Command | Core integrity fell below 50% 25257 | -1/Command | Crushed by falling debris 25260 | -1/Command | Crushed by falling debris 25288 | -1/Command | Lost 3 parts (3u) 25299 | -1/Command | Crushed by falling debris 25338 | -1/Command | Crushed by falling debris 25354 | -1/Command | Crushed by falling debris 25362 | -1/Command | Crushed by falling debris 25368 | -1/Command | Crushed by falling debris 25388 | -1/Command | Crushed by falling debris 25586 | *** | Establishing 0b11! Last Messages --------------- 25362_ The unstable cave ceiling collapses. 25362_ Crushed by falling debris. 25368_ The unstable cave ceiling collapses. 25368_ Crushed by falling debris. 25376_ N2R72RLLXFPSCJ#AQPMTQU DFHZ7KWTAZLLMPW 25388_ The unstable cave ceiling collapses. 25388_ Crushed by falling debris. 25388_ Helical Railgun destroyed. 25388_ System corrupted by crushing effect (+4). 25391_ System corrupted: Component data lost. 25411_ AZQB|:QNS5PK0PFL#UHITZU&LAOE4&:ELU=U7XRV 25429_ System corrupted: Heat flow error (+279). 25464_ Acquired 34 matter. 25469_ System corrupted: Matter fused (-6). 25496_ Acquired 22 matter. 25510_ XP W:2| =JHFR/|V%18GZYDF|& 25526_ System corrupted: Matter fused (-6). 25549_ System corrupted: FCS attempts to trigger Hvy. Hardcell Cannon. 25549_ System corrupted: Hvy. Hardcell Cannon misfires. 25564_ VKUH:D4D2E,R>0RP7>1#%, Map ----- +----------------------------------------------------+ | ?????????????????????????????????????????????????? | | ?????????????????????????????????????????????????? | | ?????????????????????????????????????????????????? | | ?????????????????????????????????????????????????? | | ?????????????????????????????????????????????????? | | ?????????????????????????????????????????????????? | | ?????????????????????????????????????????????????? | | ?????????????????????????????????????????????????? | | ?????????????????????????????????????????????????? | | ?????????????????????????????????????????????????? | | ?????????????????????????????????????????????????? | | ?????????????????????????????????????????????????? | | ?????????????????????????????????????????????????? | | ?????????????????????????????????????????????????? | | ?????????????????????????????????????????????????? | | ?????????????????????????????????????????????????? | | ?????????????????????????????????????????????????? | | ?????????????????????????????????????????????????? | | ????????????????????????????????????############## | | ????????????????????????????????????# | | ????????????????????????????????????# | | ????????????????????????????????????# #####+##### | | ????????????????????????????????????# #??# #### | | ???????????????????????######???????# #??# ## | | ???????????????????????# #???????# #??# ## | | ???????????????????????# @ #???????# #??# " | | ??????##??##########???# #???????# #??# ## | | ??????# #???### #???????# #??# #### | | ??????# #?????# #???????# #??# #??? | | ??????# #?????# ######### #??#####??? | | ??????# #?????# # # #?????????? | | ??????# #?????# + # #?????????? | | ??????# "" #?????# # # #?????????? | | ??????# """ #????## ######### #?????????? | | ??????# "T #????# ######## #?????????? | | ??????# """ #????# #?????????? | | ??????# "" #????# #?????????? | | ??????# ] #????# ######## #?????????? | | ?###### #????#########???# "###??????? | | ##""*########+############# ##### #??????? | | =!![ [! = * "" ######?? | | ##"=%####+##= =[ ! "T ## #?? | | ?# ! %+%* % =!!= ## #?? | | ?# =########### =## #####[% ## #?? | | ## #?????????# #############=*%### #?? | | ## #?????????# + # # #?#=%=#?? | | #################????# # # + #?#=%%#?? | | #?????#""""""# #????# %# # # #?#=%=#?? | | #?????#""" + #????## ## # # ####+#### | | ??????#""" + #?????#!## # # !!= == ![ | +----------------------------------------------------+ Best States ------------- Heat Dissipation 118 Coolant Potential 65 Energy Generation 55 Energy Capacity 880 Matter Stores 1027 Matter Capacity 1200 Sight Range 16 Robot Scan Range 16 Terrain Scan Range 16 Terrain Scan Density 60 Power Amplification 30 Additional Mass Support 9 Armor Coverage 2475 Resistance: KI 25 Resistance: TH 30 Propulsion Shielding 66 Weapon Shielding 33 Reclamation Efficiency 20 Weapon Cycling 25 Melee Speed Boost 50 Evasion (%) 55 Targeting Accuracy 24 Melee Accuracy 12 Launcher Accuracy 30 Target Analysis 10 Core Analysis 15 Armor Integrity Analysis 45 Recoil Reduction 6 Matter Filtering 30 Energy Filtering 30 Kinecelleration 50 Salvage Targeting 3 Offensive Hacking 44 Defensive Hacking 36 Item Schematics ----------------- Actuator Array | -6/Factory | Hacked Combat Drone Bay | -6/Data Miner | Free Lgt. Regenerative Plating | -6/Data Miner | Free Exp. Cesium-ion Thruster | -6/Data Miner | Free Triangulator | -6/Data Miner | Free Exp. Targeting Computer | -6/Data Miner | Free Tactical Coordination Suite | -6/Data Miner | Free Exp. Transmission Jammer | -6/Data Miner | Free Mni. Smartbomb Launcher | -6/Data Miner | Free Robot Schematics ------------------ O-16 Technician | -9/Mines | Hacked S-27 Virus | -6/Data Miner | Free G-50 Soldier | -6/Data Miner | Free G-67 Veteran | -6/Data Miner | Free L-41 Fighter | -6/Data Miner | Free X-72 Disruptor | -6/Data Miner | Free I-36 Angel | -6/Data Miner | Free I-47 Archangel | -6/Data Miner | Free A-27 Freighter | -3/Research | Hacked Fabricated ------------ Centrium Light Armor Plating | x1 | -6/Factory | Preloaded Actuator Array | x1 | -6/Factory Exp. Targeting Computer | x1 | -4/Factory A-27 Freighter | x1 | -2/Research A-27 Freighter | x1 | -2/Research Alien Tech Used ----------------- None Achievements -------------- None Challenges ------------ None Game ------ Seed TargetRecoilMapper Manual? 0 Play Time 02:38:25 Cumulative 1974.8 hours Start 2021.05.01 @ 23:28:38 End 2021.05.02 @ 03:51:19 Sessions 3 Manual Loads 0 Difficulty Rogue Special Mode None Game No. 2585 Rogue 2577 Adventurer 0 Explorer 8 Win Type 1 Total 219 Types 44/28/85/3/3/5/48/2/1 Lore% 100 Gallery% 99 Achievement% 100 Wizard Run 0 Options --------- ASCII 0 Keyboard 1 Movement Numpad Keybinds 1 Fullscreen 1 Font 18/SmallcapsGlow Map View 76x50 Tactical HUD 1 Map Filters NONE Filters NONE Steam 1 RUN: 2f47e42f-bb00-47f6-83b0-ba233bc58c0a